fUST/lending_fUST_20250630
["ID","MTS","AMOUNT","RATE_DAILY","PERIOD"]
[368612303,1751236237247,-460.0,0.00018597,2]
[368612304,1751236237257,-469.77,0.00018597,2]
[368612305,1751236237266,-460.0,0.00018597,2]
[368612306,1751236237275,-460.0,0.00018597,2]
[368612307,1751236237285,-460.0,0.00018597,2]
[368612308,1751236237294,-460.0,0.00018597,2]
[368612309,1751236237303,-460.0,0.00018597,2]
[368612310,1751236237312,-460.0,0.00018597,2]
[368612311,1751236237326,-460.0,0.00018597,2]
[368612312,1751236237335,-460.0,0.00018597,2]
[368612313,1751236237344,-460.0,0.00018597,2]
[368612314,1751236237485,-460.0,0.00018597,2]
[368612315,1751236237494,-460.0,0.00018597,2]
[368612316,1751236237504,-460.0,0.00018598,2]
[368612317,1751236237514,-460.0,0.00018598,2]
[368612318,1751236237523,-460.0,0.00018598,2]
[368612319,1751236237533,-460.0,0.00018598,2]
[368612320,1751236237542,-417.82589537,0.00018598,2]
[368612321,1751236237552,-460.0,0.00018598,2]
[368612322,1751236237561,-460.0,0.00018598,2]
[368612323,1751236237574,-460.0,0.00018599,2]
[368612324,1751236237584,-460.0,0.00018599,2]
[368612325,1751236237594,-458.11561876,0.00018599,2]
[368612326,1751236237604,-460.0,0.00018599,2]
[368612327,1751236237613,-460.0,0.00018599,2]
[368612328,1751236237623,-460.0,0.00018599,2]
[368612329,1751236237633,-460.0,0.000186,2]
[368612330,1751236237643,-1714.97218707,0.00018681,2]
[368612331,1751236237653,-460.0,0.00018867,2]
[368612332,1751236237662,-460.0,0.00018867,2]
[368612333,1751236237672,-460.0,0.00018867,2]
[368612334,1751236237682,-460.0,0.00018867,2]
[368612335,1751236237691,-460.0,0.00018867,2]
[368612336,1751236237701,-460.0,0.00018867,2]
[368612337,1751236237710,-460.0,0.00018867,2]
[368612338,1751236237720,-1309.61,0.00018867,2]
[368612339,1751236237730,-460.0,0.00018867,2]
[368612340,1751236237740,-497.65,0.00018867,2]
[368612341,1751236237749,-460.0,0.00018868,2]
[368612342,1751236237759,-460.0,0.00018868,2]
[368612343,1751236237769,-460.0,0.00018868,2]
[368612344,1751236237779,-460.0,0.00018868,2]
[368612345,1751236237789,-460.0,0.00018868,2]
[368612346,1751236237798,-460.0,0.00018868,2]
[368612347,1751236237808,-460.0,0.00018868,2]
[368612348,1751236237821,-460.0,0.00018868,2]
[368612349,1751236237831,-522.79,0.00018868,2]
[368612350,1751236237842,-460.0,0.00018868,2]
[368612352,1751236237851,-655.06,0.00018868,2]
[368612353,1751236237860,-1455.63,0.00018868,2]
[368612354,1751236237870,-978.25,0.00018868,2]
[368612355,1751236237879,-460.0,0.00018868,2]
[368612356,1751236237889,-460.0,0.00018868,2]
[368612358,1751236237899,-460.0,0.00018868,2]
[368612359,1751236237908,-2218.66,0.00018868,2]
[368612360,1751236237918,-460.0,0.00018868,2]
[368612361,1751236237926,-460.0,0.00018868,2]
[368612363,1751236237936,-460.0,0.00018868,2]
[368612364,1751236237945,-489.78,0.00018868,2]
[368612365,1751236237955,-460.0,0.00018868,2]
[368612367,1751236237965,-460.0,0.00018868,2]
[368612370,1751236237974,-460.0,0.00018868,2]
[368612373,1751236237983,-460.0,0.00018868,2]
[368612375,1751236237992,-1959.62,0.00018868,2]
[368612377,1751236238001,-244.05,0.00018868,2]
[368612379,1751236238010,-460.0,0.00018868,2]
[368612381,1751236238020,-460.0,0.00018868,2]
[368612383,1751236238029,-1827.78,0.00018868,2]
[368612385,1751236238038,-526.64,0.00018868,2]
[368612386,1751236238047,-460.0,0.00018868,2]
[368612387,1751236238056,-2140.95,0.00018868,2]
[368612388,1751236238067,-460.0,0.00018868,2]
[368612390,1751236238076,-460.0,0.00018868,2]
[368612392,1751236238085,-460.0,0.00018868,2]
[368612395,1751236238095,-460.0,0.00018868,2]
[368612396,1751236238104,-460.0,0.00018868,2]
[368612398,1751236238113,-1039.04,0.00018868,2]
[368612400,1751236238122,-460.0,0.00018868,2]
[368612402,1751236238132,-460.0,0.00018868,2]
[368612404,1751236238143,-1808.45,0.00018868,2]
[368612406,1751236238153,-460.0,0.00018868,2]
[368612408,1751236238162,-460.0,0.00018868,2]
[368612410,1751236238172,-460.0,0.00018868,2]
[368612412,1751236238183,-460.0,0.00018868,2]
[368612414,1751236238192,-765.33,0.00018868,2]
[368612416,1751236238202,-460.0,0.00018868,2]
[368612418,1751236238211,-460.0,0.00018869,2]
[368612420,1751236238222,-460.0,0.00018869,2]
[368612422,1751236238231,-460.0,0.00018869,2]
[368612424,1751236238241,-460.0,0.00018869,2]
[368612426,1751236238250,-460.0,0.00018869,2]
[368612428,1751236238259,-460.0,0.00018869,2]
[368612430,1751236238268,-288.44,0.00018869,2]
[368612432,1751236238277,-460.0,0.00018869,2]
[368612434,1751236238287,-460.0,0.00018869,2]
[368612436,1751236238296,-460.0,0.00018869,2]
[368612438,1751236238307,-460.0,0.00018869,2]
[368612440,1751236238322,-460.0,0.00018869,2]
[368612442,1751236238331,-460.0,0.00018869,2]
[368612443,1751236238340,-460.0,0.00018869,2]
[368612444,1751236238350,-460.0,0.00018869,2]
[368612445,1751236238359,-460.0,0.00018869,2]
[368612447,1751236238368,-460.0,0.00018869,2]
[368612449,1751236238378,-460.0,0.00018869,2]
[368612451,1751236238388,-460.0,0.00018869,2]
[368612453,1751236238398,-2693.78,0.00018869,2]
[368612456,1751236238407,-460.0,0.0001887,2]
[368612459,1751236238416,-460.0,0.0001887,2]
[368612462,1751236238425,-460.0,0.0001887,2]
[368612464,1751236238435,-460.0,0.0001887,2]
[368612466,1751236238445,-460.0,0.0001887,2]
[368612468,1751236238454,-430.52,0.0001887,2]
[368612470,1751236238463,-460.0,0.0001887,2]
[368612472,1751236238472,-460.0,0.0001887,2]
[368612474,1751236238481,-460.0,0.0001887,2]
[368612476,1751236238490,-421.82,0.0001887,2]
[368612478,1751236238499,-460.0,0.0001887,2]
[368612480,1751236238509,-460.0,0.0001887,2]
[368612482,1751236238518,-460.0,0.0001887,2]
[368612484,1751236238527,-458.71113077,0.0001887,2]
[368612486,1751236238537,-460.0,0.0001887,2]
[368612488,1751236238545,-460.0,0.0001887,2]
[368612490,1751236238554,-460.0,0.0001887,2]
[368612491,1751236238564,-460.0,0.0001887,2]
[368612494,1751236238576,-460.0,0.0001887,2]
[368612496,1751236238586,-590.56351709,0.0001887,2]
[368612498,1751236238596,-460.0,0.0001887,2]
[368612500,1751236238605,-460.0,0.0001887,2]
[368612501,1751236238614,-460.0,0.0001887,2]
[368612503,1751236238623,-460.0,0.0001887,2]
[368612505,1751236238632,-460.0,0.0001887,2]
[368612507,1751236238643,-460.0,0.0001887,2]
[368612509,1751236238653,-460.0,0.0001887,2]
[368612510,1751236238662,-460.0,0.0001887,2]
[368612511,1751236238672,-548.01,0.0001887,2]
[368612513,1751236238681,-1207.49,0.0001887,2]
[368612514,1751236238690,-460.0,0.0001887,2]
[368612516,1751236238700,-460.0,0.0001887,2]
[368612518,1751236238711,-460.0,0.0001887,2]
[368612520,1751236238720,-460.0,0.0001887,2]
[368612522,1751236238729,-487.94,0.0001887,2]
[368612524,1751236238738,-3098.33,0.0001887,2]
[368612527,1751236238748,-460.0,0.0001887,2]
[368612529,1751236238757,-1004.54,0.0001887,2]
[368612531,1751236238766,-460.0,0.0001887,2]
[368612533,1751236238776,-460.0,0.0001887,2]
[368612535,1751236238785,-562.98,0.0001887,2]
[368612537,1751236238794,-1115.83,0.0001887,2]
[368612539,1751236238803,-460.0,0.0001887,2]
[368612540,1751236238813,-835.27,0.0001887,2]
[368612542,1751236238827,-460.0,0.0001887,2]
[368612545,1751236238836,-460.0,0.0001887,2]
[368612546,1751236238845,-460.0,0.0001887,2]
[368612548,1751236238855,-460.0,0.0001887,2]
[368612550,1751236238864,-460.0,0.0001887,2]
[368612552,1751236238874,-460.0,0.0001887,2]
[368612554,1751236238883,-916.76,0.0001887,2]
[368612556,1751236238892,-848.3,0.0001887,2]
[368612558,1751236238902,-460.0,0.0001887,2]
[368612560,1751236238911,-460.0,0.0001887,2]
[368612563,1751236238921,-703.84,0.0001887,2]
[368612565,1751236238931,-460.0,0.0001887,2]
[368612566,1751236238940,-460.0,0.0001887,2]
[368612569,1751236238950,-1554.56,0.0001887,2]
[368612571,1751236238959,-460.0,0.0001887,2]
[368612573,1751236238969,-211.84,0.00018871,2]
[368612574,1751236238978,-460.0,0.00018871,2]
[368612576,1751236238987,-460.0,0.00018871,2]
[368612578,1751236238997,-460.0,0.00018871,2]
[368612580,1751236239006,-460.0,0.00018871,2]
[368612582,1751236239016,-460.0,0.00018871,2]
[368612584,1751236239025,-326.78062633,0.00018871,2]
[368612586,1751236239035,-460.0,0.00018871,2]
[368612589,1751236239047,-460.0,0.00018871,2]
[368612591,1751236239056,-460.0,0.00018871,2]
[368612593,1751236239069,-523.93088361,0.00018871,2]
[368612595,1751236239078,-460.0,0.00018871,2]
[368612597,1751236239088,-469.77,0.00018871,2]
[368612599,1751236239097,-460.0,0.00018871,2]
[368612601,1751236239106,-460.0,0.00018871,2]
[368612603,1751236239115,-152.53009194,0.00018871,2]
[368612605,1751236239124,-460.0,0.00018871,2]
[368612607,1751236239138,-460.0,0.00018871,2]
[368612609,1751236239147,-521.99,0.00018871,2]
[368612610,1751236239156,-460.0,0.00018871,2]
[368612612,1751236239165,-470.06363258,0.00018871,2]
[368612614,1751236239174,-460.0,0.00018871,2]
[368612617,1751236239183,-460.0,0.00018871,2]
[368612618,1751236239192,-460.0,0.00018871,2]
[368612620,1751236239202,-460.0,0.00018872,2]
[368612622,1751236239211,-460.0,0.00018872,2]
[368612624,1751236239220,-460.0,0.00018872,2]
[368612626,1751236239229,-156.78487001,0.00018872,2]
[368612628,1751236239239,-460.0,0.00018872,2]
[368612630,1751236239249,-273.90028463,0.00018873,2]
[368612632,1751236239258,-460.0,0.00018873,2]
[368612634,1751236239267,-460.0,0.00018873,2]
[368612636,1751236239276,-460.0,0.00018873,2]
[368612638,1751236239286,-1080.15049253,0.000189,2]
[368612640,1751236239296,-500.0,0.00018904,2]
[368612642,1751236239305,-500.0,0.00018912,2]
[368612644,1751236239314,-500.0,0.00018932,2]
[368612646,1751236239325,-500.90268572,0.00018958,2]
[368612648,1751236239334,-428.52617537,0.00018958,2]
[368612650,1751236239343,-500.0,0.00018958,2]
[368612652,1751236239352,-504.28252098,0.00018958,2]
[368612654,1751236239362,-430.50900453,0.00018958,2]
[368612656,1751236239372,-500.0,0.00019012,2]
[368612658,1751236239381,-500.0,0.00019012,2]
[368612660,1751236239390,-500.40216454,0.00019012,2]
[368612662,1751236239400,-500.0,0.00019012,2]
[368612664,1751236239409,-500.0,0.00019021,2]
[368612666,1751236239418,-500.0,0.00019021,2]
[368612668,1751236239427,-500.0,0.00019021,2]
[368612670,1751236239436,-500.0,0.00019021,2]
[368612672,1751236239446,-500.0,0.0001903,2]
[368612674,1751236239455,-500.0,0.0001903,2]
[368612676,1751236239464,-500.0,0.0001903,2]
[368612678,1751236239473,-500.0,0.0001903,2]
[368612680,1751236239483,-500.0,0.0001903,2]
[368612682,1751236239492,-500.0,0.0001903,2]
[368612684,1751236239501,-500.0,0.0001903,2]
[368612686,1751236239510,-500.0,0.0001903,2]
[368612688,1751236239519,-500.0,0.0001903,2]
[368612690,1751236239529,-500.0,0.0001903,2]
[368612692,1751236239538,-500.87736512,0.0001903,2]
[368612694,1751236239547,-500.0,0.0001903,2]
[368612696,1751236239557,-500.0,0.00019058,2]
[368612698,1751236239568,-500.0,0.00019061,2]
[368612700,1751236239577,-500.0,0.00019061,2]
[368612702,1751236239586,-500.0,0.00019061,2]
[368612704,1751236239595,-614.0,0.0001912,2]
[368612706,1751236239604,-500.0,0.00019125,2]
[368612707,1751236239614,-460.0,0.00019141,2]
[368612709,1751236239624,-460.0,0.00019141,2]
[368612712,1751236239633,-1309.61,0.00019141,2]
[368612714,1751236239643,-460.0,0.00019142,2]
[368612715,1751236239652,-460.0,0.00019142,2]
[368612717,1751236239662,-460.0,0.00019142,2]
[368612719,1751236239671,-460.0,0.00019142,2]
[368612721,1751236239680,-655.06,0.00019142,2]
[368612723,1751236239690,-1455.63,0.00019142,2]
[368612724,1751236239699,-978.25,0.00019142,2]
[368612725,1751236239708,-460.0,0.00019142,2]
[368612726,1751236239717,-2218.66,0.00019142,2]
[368612727,1751236239726,-460.0,0.00019142,2]
[368612728,1751236239736,-489.78,0.00019142,2]
[368612729,1751236239746,-460.0,0.00019142,2]
[368612730,1751236239756,-460.0,0.00019142,2]
[368612731,1751236239765,-460.0,0.00019142,2]
[368612732,1751236239775,-460.0,0.00019142,2]
[368612733,1751236239784,-1959.62,0.00019142,2]
[368612734,1751236239793,-460.0,0.00019142,2]
[368612735,1751236239802,-1827.78,0.00019142,2]
[368612736,1751236239812,-526.64,0.00019142,2]
[368612737,1751236239822,-2140.95,0.00019142,2]
[368612738,1751236239832,-460.0,0.00019142,2]
[368612739,1751236239841,-460.0,0.00019142,2]
[368612740,1751236239850,-1039.04,0.00019142,2]
[368612741,1751236239860,-1808.45,0.00019142,2]
[368612742,1751236239870,-460.0,0.00019142,2]
[368612743,1751236239879,-460.0,0.00019142,2]
[368612744,1751236239888,-460.0,0.00019142,2]
[368612745,1751236239897,-765.33,0.00019142,2]
[368612746,1751236239906,-460.0,0.00019143,2]
[368612747,1751236239915,-460.0,0.00019143,2]
[368612748,1751236239924,-460.0,0.00019143,2]
[368612749,1751236239933,-460.0,0.00019143,2]
[368612750,1751236239942,-460.0,0.00019143,2]
[368612751,1751236239952,-460.0,0.00019143,2]
[368612752,1751236239962,-460.0,0.00019143,2]
[368612753,1751236239971,-460.0,0.00019143,2]
[368612754,1751236239980,-460.0,0.00019143,2]
[368612755,1751236239989,-460.0,0.00019143,2]
[368612756,1751236239999,-460.0,0.00019143,2]
[368612757,1751236240007,-2693.78,0.00019143,2]
[368612758,1751236240017,-460.0,0.00019144,2]
[368612759,1751236240026,-460.0,0.00019144,2]
[368612760,1751236240035,-460.0,0.00019144,2]
[368612761,1751236240045,-460.0,0.00019144,2]
[368612762,1751236240055,-460.0,0.00019144,2]
[368612763,1751236240064,-460.0,0.00019144,2]
[368612764,1751236240075,-460.0,0.00019144,2]
[368612765,1751236240084,-460.0,0.00019144,2]
[368612766,1751236240093,-460.0,0.00019144,2]
[368612768,1751236240102,-417.19135811,0.00019144,2]
[368612770,1751236240111,-460.0,0.00019144,2]
[368612772,1751236240120,-548.01,0.00019144,2]
[368612774,1751236240131,-1207.49,0.00019144,2]
[368612776,1751236240142,-460.0,0.00019144,2]
[368612778,1751236240152,-487.94,0.00019144,2]
[368612781,1751236240162,-3098.33,0.00019144,2]
[368612784,1751236240171,-460.0,0.00019144,2]
[368612786,1751236240181,-1004.54,0.00019144,2]
[368612787,1751236240191,-400.64824902,0.00019144,2]
[368612788,1751236240201,-562.98,0.00019144,2]
[368612789,1751236240211,-1115.83,0.00019144,2]
[368612790,1751236240223,-460.0,0.00019144,2]
[368612791,1751236240234,-835.27,0.00019144,2]
[368612792,1751236240244,-460.0,0.00019144,2]
[368612793,1751236240254,-916.76,0.00019144,2]
[368612794,1751236240263,-848.3,0.00019144,2]
[368612795,1751236240274,-460.0,0.00019144,2]
[368612796,1751236240284,-703.84,0.00019144,2]
[368612797,1751236240294,-1554.56,0.00019144,2]
[368612798,1751236240304,-460.0,0.00019145,2]
[368612799,1751236240313,-469.77,0.00019145,2]
[368612800,1751236240329,-460.0,0.00019145,2]
[368612801,1751236240339,-460.0,0.00019145,2]
[368612802,1751236240349,-195.03929553,0.00019169,2]
[368612803,1751236240358,-500.0,0.00019169,2]
[368612804,1751236240367,-500.0,0.00019169,2]
[368612805,1751236240377,-500.0,0.00019169,2]
[368612806,1751236240387,-500.0,0.00019169,2]
[368612807,1751236240396,-501.18341451,0.00019169,2]
[368612808,1751236240405,-836.62405834,0.00019233,2]
[368612809,1751236240415,-614.0,0.00019239,2]
[368612810,1751236240424,-614.0,0.0001926,2]
[368612811,1751236240434,-2281.62080544,0.00019293,2]
[368612812,1751236240444,-100000.0,0.00019329,2]
[368612813,1751236240453,-276.16541993,0.00019396,2]
[368612814,1751236240462,-460.0,0.00019415,2]
[368612815,1751236240472,-460.0,0.00019415,2]
[368612816,1751236240481,-1309.61,0.00019415,2]
[368612817,1751236240489,-460.0,0.00019416,2]
[368612818,1751236240498,-460.0,0.00019416,2]
[368612819,1751236240508,-535.73,0.00019416,2]
[368612820,1751236240517,-655.06,0.00019416,2]
[368612821,1751236240527,-1455.63,0.00019416,2]
[368612822,1751236240536,-978.25,0.00019416,2]
[368612823,1751236240546,-2218.66,0.00019416,2]
[368612824,1751236240555,-460.0,0.00019416,2]
[368612825,1751236240564,-489.78,0.00019416,2]
[368612826,1751236240578,-460.0,0.00019416,2]
[368612827,1751236240587,-460.0,0.00019416,2]
[368612828,1751236240597,-1959.62,0.00019416,2]
[368612829,1751236240606,-460.0,0.00019416,2]
[368612830,1751236240616,-1827.78,0.00019416,2]
[368612831,1751236240625,-526.64,0.00019416,2]
[368612832,1751236240634,-2140.95,0.00019416,2]
[368612833,1751236240644,-460.0,0.00019416,2]
[368612834,1751236240653,-460.0,0.00019416,2]
[368612835,1751236240662,-1039.04,0.00019416,2]
[368612836,1751236240672,-1808.45,0.00019416,2]
[368612838,1751236240682,-460.0,0.00019416,2]
[368612842,1751236240816,-460.0,0.00019416,2]
[368612843,1751236240828,-524.93,0.00019416,2]
[368612844,1751236240838,-765.33,0.00019416,2]
[368612845,1751236240847,-460.0,0.00019417,2]
[368612846,1751236240857,-460.0,0.00019417,2]
[368612847,1751236240866,-289.56,0.00019417,2]
[368612848,1751236240875,-460.0,0.00019417,2]
[368612849,1751236240884,-460.0,0.00019417,2]
[368612850,1751236240893,-460.0,0.00019417,2]
[368612851,1751236240903,-460.0,0.00019417,2]
[368612852,1751236240912,-460.0,0.00019417,2]
[368612853,1751236240922,-2693.78,0.00019417,2]
[368612854,1751236240931,-483.92,0.00019418,2]
[368612855,1751236240940,-206.57,0.00019418,2]
[368612856,1751236240950,-300.11,0.00019418,2]
[368612857,1751236240959,-460.0,0.00019418,2]
[368612858,1751236240969,-460.0,0.00019418,2]
[368612859,1751236240979,-460.0,0.00019418,2]
[368612860,1751236240988,-460.0,0.00019418,2]
[368612861,1751236240997,-460.0,0.00019418,2]
[368612862,1751236241006,-548.01,0.00019418,2]
[368612863,1751236241016,-1207.49,0.00019418,2]
[368612864,1751236241025,-487.94,0.00019418,2]
[368612865,1751236241034,-3098.33,0.00019418,2]
[368612866,1751236241043,-460.0,0.00019418,2]
[368612867,1751236241053,-1004.54,0.00019418,2]
[368612868,1751236241062,-562.98,0.00019418,2]
[368612869,1751236241075,-1115.83,0.00019418,2]
[368612870,1751236241084,-460.0,0.00019418,2]
[368612871,1751236241093,-835.27,0.00019418,2]
[368612872,1751236241102,-460.0,0.00019418,2]
[368612873,1751236241111,-916.76,0.00019418,2]
[368612874,1751236241121,-848.3,0.00019418,2]
[368612875,1751236241132,-460.0,0.00019418,2]
[368612876,1751236241143,-703.84,0.00019418,2]
[368612877,1751236241152,-1554.56,0.00019418,2]
[368612878,1751236241161,-38.98905792,0.00019418,2]
[368612879,1751236241344,-112.01094208,0.00019418,2]
[368612880,1751236241353,-151.0,0.00019419,2]
[368612881,1751236241363,-151.0,0.00019419,2]
[368612882,1751236241373,-151.0,0.00019419,2]
[368612883,1751236241383,-151.0,0.00019419,2]
[368612884,1751236241392,-151.0,0.00019419,2]
[368612885,1751236241402,-151.0,0.00019419,2]
[368612886,1751236241411,-647.130636,0.00019419,2]
[368612887,1751236241420,-647.130636,0.00019419,2]
[368612888,1751236241430,-279.384218,0.00019419,2]
[368612889,1751236241439,-279.384218,0.00019419,2]
[368612890,1751236241448,-151.0,0.00019419,2]
[368612891,1751236241457,-490.70993,0.00019419,2]
[368612892,1751236241466,-490.70993,0.00019419,2]
[368612893,1751236241475,-151.0,0.00019419,2]
[368612894,1751236241484,-151.0,0.00019419,2]
[368612895,1751236241493,-633.874888,0.00019419,2]
[368612896,1751236241502,-633.874888,0.00019419,2]
[368612897,1751236241511,-460.0,0.00019419,2]
[368612898,1751236241521,-469.77,0.00019419,2]
[368612899,1751236241529,-460.0,0.00019419,2]
[368612900,1751236241538,-460.0,0.00019419,2]
[368612901,1751236241548,-1000.0,0.00019452,2]
[368612902,1751236241557,-500.0,0.00019459,2]
[368612903,1751236241567,-460.0,0.00019476,2]
[368612904,1751236241577,-806.21272658,0.0001948,2]
[368612905,1751236241590,-193.78727342,0.0001948,2]
[368612906,1751236241599,-614.0,0.0001948,2]
[368612907,1751236241608,-1000.0,0.00019506,2]
[368612908,1751236241617,-160.0,0.00019557,2]
[368612909,1751236241626,-160.0,0.00019557,2]
[368612910,1751236241635,-847.31290578,0.00019557,2]
[368612911,1751236241644,-213.82031328,0.00019557,2]
[368612912,1751236241654,-12567.05932091,0.00019557,2]
[368612913,1751236241663,-230.30207649,0.00019557,2]
[368612914,1751236241672,-214.97967293,0.00019557,2]
[368612915,1751236241682,-160.0,0.00019557,2]
[368612916,1751236241691,-160.0,0.00019557,2]
[368612917,1751236241700,-160.0,0.00019557,2]
[368612918,1751236241710,-160.0,0.00019557,2]
[368612919,1751236241719,-160.0,0.00019557,2]
[368612920,1751236241728,-837.1293463,0.00019557,2]
[368612921,1751236241737,-160.0,0.00019558,2]
[368612922,1751236241747,-1000.0,0.00019559,2]
[368612923,1751236241756,-1000.0,0.00019559,2]
[368612924,1751236241766,-1000.0,0.00019569,2]
[368612925,1751236241775,-460.0,0.00019569,2]
[368612926,1751236241784,-1000.0,0.00019569,2]
[368612927,1751236241793,-1000.0,0.00019569,2]
[368612928,1751236241803,-1000.0,0.00019578,2]
[368612929,1751236241812,-1063.40234166,0.00019578,2]
[368612930,1751236241825,-500.0,0.00019578,2]
[368612931,1751236241834,-879.00249616,0.00019578,2]
[368612932,1751236241843,-1000.0,0.00019578,2]
[368612933,1751236241852,-503.12234392,0.00019578,2]
[368612934,1751236241861,-1000.0,0.00019578,2]
[368612935,1751236241870,-1000.0,0.00019578,2]
[368612936,1751236241879,-614.0,0.00019586,2]
[368612937,1751236241888,-274.88192691,0.00019609,2]
[368612938,1751236241898,-1000.0,0.00019609,2]
[368612939,1751236241907,-1000.0,0.00019609,2]
[368612940,1751236241916,-460.0,0.00019689,2]
[368612941,1751236241925,-460.0,0.00019689,2]
[368612942,1751236241934,-1309.61,0.00019689,2]
[368612943,1751236241944,-460.0,0.0001969,2]
[368612944,1751236241953,-460.0,0.0001969,2]
[368612945,1751236241962,-655.06,0.0001969,2]
[368612946,1751236241971,-1455.63,0.0001969,2]
[368612947,1751236241981,-978.25,0.0001969,2]
[368612948,1751236241990,-2218.66,0.0001969,2]
[368612949,1751236241999,-460.0,0.0001969,2]
[368612950,1751236242008,-70.68295085,0.0001969,2]
[368612958,1751236243433,-693.382137,0.00019178,2]
[368612959,1751236243443,-419.09704915,0.0001969,2]
[368612960,1751236243454,-460.0,0.0001969,2]
[368612961,1751236243463,-460.0,0.0001969,2]
[368612962,1751236243473,-1162.27340582,0.0001969,2]
[368612963,1751236243485,-797.34659418,0.0001969,2]
[368612964,1751236243494,-460.0,0.0001969,2]
[368612965,1751236243503,-243.2432877,0.0001969,2]
[368612966,1751236243516,-1584.5367123,0.0001969,2]
[368612967,1751236243526,-526.64,0.0001969,2]
[368612968,1751236243536,-2140.95,0.0001969,2]
[368612969,1751236243545,-460.0,0.0001969,2]
[368612970,1751236243555,-460.0,0.0001969,2]
[368612971,1751236243564,-644.61801158,0.0001969,2]
[368612974,1751236243715,-324.12,0.0001969,2]
[368613015,1751236244146,-269.9244,0.00018322,2]
[368613018,1751236244163,-190.0756,0.00018322,2]
[368613020,1751236244173,-160.0,0.00019303,3]
[368613022,1751236244183,-70.30198842,0.0001969,2]
[368613024,1751236244194,-414.39908908,0.0001969,2]
[368613049,1751236246457,-391.87017754,0.0001822,2]
[368613050,1751236246468,-1394.05091092,0.0001969,2]
[368613051,1751236246478,-460.0,0.0001969,2]
[368613052,1751236246487,-460.0,0.0001969,2]
[368613053,1751236246497,-306.7425195,0.0001969,2]
[368613054,1751236246508,-434.23178838,0.0001969,2]
[368613055,1751236246543,-24.35569212,0.0001969,2]
[368613056,1751236246552,-460.0,0.00019691,2]
[368613057,1751236246562,-460.0,0.00019691,2]
[368613058,1751236246573,-460.0,0.00019691,2]
[368613059,1751236246582,-460.0,0.00019691,2]
[368613060,1751236246591,-460.0,0.00019691,2]
[368613061,1751236246599,-2693.78,0.00019691,2]
[368613062,1751236246608,-460.0,0.00019692,2]
[368613063,1751236246617,-460.0,0.00019692,2]
[368613064,1751236246626,-548.01,0.00019692,2]
[368613065,1751236246635,-1207.49,0.00019692,2]
[368613066,1751236246644,-487.94,0.00019692,2]
[368613067,1751236246653,-3098.33,0.00019692,2]
[368613068,1751236246662,-460.0,0.00019692,2]
[368613069,1751236246671,-1004.54,0.00019692,2]
[368613070,1751236246681,-562.98,0.00019692,2]
[368613071,1751236246690,-1115.83,0.00019692,2]
[368613072,1751236246699,-460.0,0.00019692,2]
[368613073,1751236246708,-835.27,0.00019692,2]
[368613074,1751236246717,-460.0,0.00019692,2]